Cogmind - Beta 11.1 @@@ ROGUE MODE // 2022.05.01 @ 15:32:22 // Winter2019/RPGLIKE Player: Kiks Result: Destroyed by D-53 Grenadier with Mini Grenade Launcher Performance ------------- Evolutions (0) 0 Regions Visited (2) 400 Robots Destroyed (27) 135 Value Destroyed (451) 451 Prototype IDs (0) 0 Alien Tech Used (0) 0 Bonus (0) 0 TOTAL SCORE: 986 Bonus ------- None Cogmind --------- Core Integrity 0/600 Matter 290/300 Energy 159/160 System Corruption 21% Temperature Cool (0) Movement Hovering (56) Location -10/Mines Parts ------- > --- POWER (1) -------- Light Nuclear Core > --- PROPULSION (2) --- Airjet Airjet > --- UTILITY (3) ------ Trap Scanner Long-range Tractor Beam Improved Trap Extractor (0/6) > --- WEAPON (2) ------- Assault Rifle > --- INVENTORY (3) ---- Aluminum Leg Aluminum Leg Signal Interpreter Peak State ------------ > --- POWER ------------ Light Nuclear Core > --- PROPULSION ------- Airjet Airjet > --- UTILITY ---------- Trap Scanner Long-range Tractor Beam Improved Trap Extractor > --- WEAPON ----------- Assault Rifle Light Assault Rifle > --- INVENTORY -------- Aluminum Leg Aluminum Leg Signal Interpreter [Rating: 21] Favorites ----------- Power Light Ion Engine Engine Light Ion Engine Power Core Light Nuclear Core Propulsion Aluminum Leg Leg Aluminum Leg Hover Unit Airjet Utility Tractor Beam Device Tractor Beam Storage Small Matter Pod Weapon Assault Rifle Ballistic Gun Assault Rifle Build | -11 -10 -10 ------- Run | Scr Mat Min Slots Evolved 4 | 3 . 1 Power . | . . . Propulsion 1 | 1 . . Utility 2 | 1 . 1 Weapon 1 | 1 . . Parts Attached 13 | 6 1 6 Power 2 | 1 . 1 Engine 1 | 1 . . Core 1 | . . 1 Reactor . | . . . Propulsion 4 | 2 . 2 Treads . | . . . Leg 2 | 2 . . Wheel . | . . . Hover 2 | . . 2 Flight . | . . . Utility 5 | 1 1 3 Device 4 | 1 . 3 Storage 1 | . 1 . Processor . | . . . Hackware . | . . . Protection . | . . . Artifact . | . . . Weapon 2 | 2 . . Energy Gun . | . . . Energy Cannon . | . . . Ballistic Gun 2 | 2 . . Ballistic Cannon . | . . . Launcher . | . . . Special Weapon . | . . . Impact Weapon . | . . . Slashing Weapon . | . . . Piercing Weapon . | . . . Special Melee Weapon . | . . . Unidentified Prototypes . | . . . Corrupted Parts 5 | . . 5 System Corruption 21 | . . 21 Parts Lost . | . . . Power . | . . . Propulsion . | . . . Utility . | . . . Weapon . | . . . Highest Loss Streak . | . . . To Critical Strikes . | . . . Average Slot Usage (%) 97 | . 96 98 Engine 9 | . 14 3 Core 4 | . . 9 Leg 26 | . 28 24 Hover 1 | . . 2 Device 16 | . 14 20 Storage 10 | . 10 9 Ballistic Gun 27 | . 28 25 Naked Turns . | . . . Heaviest Build 14 | 7 8 14 Greatest Support 20 | 20 20 20 Greatest Overweight (x) . | . . . Average Overweight (x) . | . . . Largest Inventory Capacity 3 | 3 3 3 Average Capacity 2 | 2 3 3 Most Carried 3 | . 2 3 Average Carried 1 | . 1 2 Final Capacity 3 | 3 3 3 Final Carried 3 | . 2 3 Class Distribution -------------------- 100% | Mutant Dominant Class ---------------- Mutant | -10/Materials Mutant | -10/Mines Resources | -11 -10 -10 ----------- Run | Scr Mat Min Matter Collected 708 | 288 280 140 Remotely 508 | 118 280 110 Salvage Created 802 | 95 521 186 Parts 61 | 2 45 14 Haulers Intercepted 2 | . 2 . Recyclers Shooed 4 | . 2 2 Parts Field Recycled . | . . . Retrieved Matter . | . . . Parts Self-Destructed . | . . . Prevented . | . . . Kills | -11 -10 -10 ------- Run | Scr Mat Min Combat Hostiles Destroyed 14 | . 14 . Guns 14 | . 14 . Classes Destroyed 7 | 1 4 2 Worker 4 | . . 4 Tunneler 2 | . . 2 Hauler 2 | . 2 . Recycler 2 | 1 . 1 Watcher 3 | . 3 . Swarmer 5 | . 5 . Grunt 9 | . 9 . Best Kill Streak 3 | 1 3 3 Combat Bots Only 3 | . 3 . Max Kills in Single Turn 1 | 1 1 1 Gunslinging . | . . . Exploded . | . . . Melee . | . . . Uniques/NPCs Destroyed . | . . . Combat | -11 -10 -10 -------- Run | Scr Mat Min Damage Taken 1091 | . 425 666 Core 888 | . 333 555 Absorbed by Shields . | . . . Redirected to Core 682 | . 292 390 Core Remaining (%) 100 | 100 . . Volleys Fired 80 | 7 55 18 Largest 2 | 2 2 2 Hottest 40 | 40 40 40 Shots Fired 159 | 14 110 35 Gun 159 | 14 110 35 Cannon . | . . . Launcher . | . . . Special . | . . . Kinetic 159 | 14 110 35 Thermal . | . . . Explosive . | . . . Electromagnetic . | . . . Robot Hit Streak 20 | 4 9 20 Robot Miss Streak 5 | 1 5 2 Penetration Max . | . . . Secondary Targets 3 | . 3 . Max Gunslinging Chain 1 | . 1 . Shots Hit Robots 91 | 8 59 24 Core Hits 45 | 2 34 9 Critical Kills . | . . . Critical Parts Destroyed . | . . . Critical Strikes . | . . . Melee Attacks . | . . . Impact . | . . . Slashing . | . . . Piercing . | . . . Sneak Attacks . | . . . Combat Hostiles . | . . . Follow-up Attacks . | . . . Damage Inflicted 1003 | 73 681 249 Guns 1003 | 73 681 249 Cannons . | . . . Explosions . | . . . Melee . | . . . Ramming . | . . . Kinetic 1003 | 73 681 249 Thermal . | . . . Explosive . | . . . Electromagnetic . | . . . Impact . | . . . Slashing . | . . . Piercing . | . . . Highest Corruption 21 | . . 21 Average Corruption 14 | . . 14 Corruption Purged . | . . . Corruption Blocked . | . . . Effects 9 | . . 9 Message Errors 1 | . . 1 Matter Fused 3 | . . 3 Heat Flow Errors 2 | . . 2 Energy Discharges 1 | . . 1 Misfires 1 | . . 1 Misdirections 1 | . . 1 Overload Shots . | . . . Overflow Damage . | . . . Projectiles . | . . . Explosions . | . . . Melee . | . . . Knockbacks . | . . . Impact . | . . . Kinetic . | . . . Secondary . | . . . Self-Inflicted Damage . | . . . Shots . | . . . Rammed . | . . . Targets Rammed . | . . . Kicked . | . . . Crushed . | . . . Highest Temperature 280 | . 12 280 Average Temperature 63 | . 6 92 Received Heat Transfer 356 | . 156 200 Siege Activations . | . . . Robots Corrupted . | . . . Combat Hostiles . | . . . Parts Fried . | . . . Impact Corruptions . | . . . Robots Melted . | . . . Combat Hostiles . | . . . Parts Melted . | . . . Heat Transferred . | . . . Parts Sabotaged . | . . . Parts Stolen . | . . . Parts Stripped . | . . . Power Chain Reactions . | . . . Missiles Intercepted . | . . . Alert | -11 -10 -10 ------- Run | Scr Mat Min Peak Influence 247 | 5 247 52 Initial 17 | . 3 17 Average 70 | . 115 21 Maximum Alert Level 1 | . 1 . Low Security (%) 97 | 100 95 100 Level 1 2 | . 4 . Level 2 . | . . . Level 3 . | . . . Level 4 . | . . . Level 5 . | . . . High Security . | . . . Max Security . | . . . Squads Dispatched 5 | . 4 1 Investigation 4 | . 3 1 Extermination . | . . . Reinforcement 1 | . 1 . Assault . | . . . Garrison . | . . . Intercept . | . . . Searches Triggered . | . . . Construction Impeded . | . . . Haulers Reinforced . | . . . Active Scanning Responses . | . . . Cargo Convoy Interrupts . | . . . Stealth | -11 -10 -10 --------- Run | Scr Mat Min Distress Signals . | . . . Communications Jammed . | . . . Distress Signals . | . . . Times Spotted 36 | . 20 16 Peak Tracking Total 10 | . 3 10 Tactical Retreats 4 | . 1 3 Traps | -11 -10 -10 ------- Run | Scr Mat Min Traps Triggered 4 | . 3 1 Indirectly . | . . . Trap Hack Attempts . | . . . Triggered . | . . . Disarmed . | . . . Reprogrammed . | . . . Reused . | . . . Traps Extracted . | . . . Installed 5 | . . 5 Triggered . | . . . Most Traps Carried 1 | . . 1 Machines | -11 -10 -10 ---------- Run | Scr Mat Min Machines Disabled . | . . . Max in Single Turn . | . . . Machines Sabotaged . | . . . Garrisons Compromised . | . . . Overloaded Fab Kills . | . . . Hacking | -11 -10 -10 --------- Run | Scr Mat Min Machines Accessed 8 | . 6 2 Terminals 6 | . 6 . Fabricators . | . . . Repair Stations . | . . . Recycling Units . | . . . Scanalyzers . | . . . Garrison Access . | . . . Total Hacks 17 | . 15 2 Successful 10 | . 8 2 Failed 7 | . 7 . Catastrophic 1 | . 1 . Database Lockouts . | . . . Manual 9 | . 9 . Terminals 15 | . 15 . Fabricators . | . . . Repair Stations . | . . . Recycling Units . | . . . Scanalyzers . | . . . Garrison Access . | . . . Terminal Hacks 4 | . 2 2 Open Door 2 | . . 2 Unreport Threat 2 | . 2 . Fabricator Hacks . | . . . Repair Station Hacks . | . . . Recycling Unit Hacks . | . . . Scanalyzer . | . . . Garrison Access Hacks . | . . . Unauthorized Hacks 6 | . 6 . Terminals 6 | . 6 . Assimilate 1 | . 1 . Botnet 5 | . 5 . Fabricators . | . . . Repair Stations . | . . . Recycling Units . | . . . Scanalyzers . | . . . Garrison Access . | . . . Data Cores Recovered . | . . . Used . | . . . Hacking Detections 6 | . 6 . Full Trace Events . | . . . Feedback Events . | . . . Feedback Blocked . | . . . Robot Schematics Acquired . | . . . Robots Built . | . . . Authchips . | . . . Time . | . . . Total Robot Build Rating . | . . . Part Schematics Acquired . | . . . Parts Built . | . . . Authchips . | . . . Time . | . . . Total Part Build Rating . | . . . Parts Repaired . | . . . Time . | . . . Parts Recycled . | . . . Recycled Matter . | . . . Retrieved Matter . | . . . Retrieved Components . | . . . Parts Scanalyzed . | . . . Part Schematics Acquired . | . . . Parts Damaged . | . . . Bothacking | -11 -10 -10 ------------ Run | Scr Mat Min Used RIF Installer . | . . . Robots Hacked . | . . . Non-combat . | . . . Combat . | . . . Robot Hacks Applied . | . . . Relay Couplers Released . | . . . Fabnet Peak Effective % . | . . . Robots Rewired . | . . . Allies Hacked . | . . . Hacks Repelled . | . . . Allies | -11 -10 -10 -------- Run | Scr Mat Min Total Allies . | . . . Largest Group . | . . . Highest-Rated Group . | . . . Highest-Rated Ally . | . . . Total Orders . | . . . Ally Attacks . | . . . Total Damage . | . . . Kills . | . . . Allies Corrupted . | . . . Allies Melted . | . . . Intel | -11 -10 -10 ------- Run | Scr Mat Min Robot Analysis Total . | . . . Derelict Logs Recovered 2 | . . 2 Drone Launches . | . . . Drone Recoveries . | . . . Exploration | -11 -10 -10 ------------- Run | Scr Mat Min Turns Passed 1567 | 84 840 643 Spaces Moved 1112 | 51 556 505 Core 7 | 7 . . Treads . | . . . Legs 1014 | 44 556 414 Wheels . | . . . Hover 91 | . . 91 Flight . | . . . Fastest Speed 50 | 50 120 56 Average Speed 114 | 110 120 108 Slowest Speed 120 | 120 120 120 Overloaded Moves . | . . . Propulsion Burnouts . | . . . Robots Hopped . | . . . Cave-ins Triggered . | . . . Exploration Rate (%) 57 | 4 95 74 Regions Visited 2 Branch Regions 1 Pre-discovered Areas . | . . . Known Exits Taken . | . . . Unknown Exits Taken 2 | 1 1 . Scrap Searched 1 | . . 1 Spaces Dug . | . . . Terrain Destroyed . | . . . Melee . | . . . Projectile . | . . . AOE . | . . . Terrain Rammed . | . . . Walls Destroyed . | . . . Machines Disabled . | . . . Actions | -11 -10 -10 --------- Run | Scr Mat Min Total 1263 | 63 629 571 Wait 22 | . 2 20 Move 1110 | 50 555 505 Hop . | . . . Pick Up 8 | . 2 6 Fast Attach 9 | 6 1 2 Attach . | . . . Detach . | . . . Swap 4 | . . 4 Drop 7 | . . 7 Fire 80 | 7 55 18 Melee . | . . . Ram . | . . . Kick . | . . . Crush . | . . . Escape Stasis . | . . . Rewire . | . . . Trap 5 | . . 5 Miscellaneous 18 | . 14 4 Route ------- -11/Scrapyard -10/Materials (discovered 5 exits: [*Mat x3] / *Min x2) -10/Mines History --------- Turn | Location | Event 5 | -11/Scrapyard | Discovered new exit (range 16) 15 | -11/Scrapyard | Upgraded with Propulsion slot (x1) 15 | -11/Scrapyard | Upgraded with Utility slot (x1) 15 | -11/Scrapyard | Upgraded with Weapon slot (x1) 85 | -11/Scrapyard | Entered Materials 85 | -10/Materials | Discovered new exit (range 8) 311 | -10/Materials | Build established: Mutant 320 | -10/Materials | Discovered new exit (range 12) 374 | -10/Materials | Discovered new exit (range 8) 483 | -10/Materials | Discovered new exit (range 15) 635 | -10/Materials | Reached level 2 789 | -10/Materials | Discovered new exit (range 16) 925 | -10/Materials | Entered Mines 952 | -10/Mines | Found a hidden stash of uninstalled traps 1036 | -10/Mines | Learned 2 Materials zone layouts 1068 | -10/Mines | Learned 2 Materials zone layouts 1095 | -10/Mines | Met a Derelict shopkeep closing up shop 1346 | -10/Mines | Met a Derelict who couldn't figure out how to use a Trap Extractor 1381 | -10/Mines | Upgraded with Utility slot (x1) 1387 | -10/Mines | System corruption reached 10% 1409 | -10/Mines | Assembled infested the area 1414 | -10/Mines | Assisted by a Guerilla fighting off Assembled 1493 | -10/Mines | Core integrity fell below 50% 1517 | -10/Mines | Core integrity fell below 20% 1568 | -10/Mines | Destroyed by D-53 Grenadier with Mini Grenade Launcher Last Messages --------------- 01468_ System corrupted: Energy discharge (-36). 01494_ Critical hit (Burn: +80). 01496_ as-08442 destroyed. 01500_ Integrated Corrupted Airjet (+4). 01501_ Acquired 10 matter. 01502_ Integrated Corrupted Airjet (+5). 01503_ Acquired 6 matter. 01503_ Dropped Lgt. Assault Rifle. 01509_ Acquired 4 matter. 01509_ System corrupted: Heat flow error (+275). 01514_ K-01 Serf destroyed. 01514_ K-01 Serf collects debris. 01525_ System corrupted: FCS attempts to trigger Assault Rifle. 01525_ System corrupted: Assault Rifle misfires. 01526_ Acquired 3 matter. 01530_ K-01 Serf destroyed. 01531_ as-99163 destroyed. 01538_ The unstable cave ceiling collapses. 01544_ System corrupted: Matter fused (-7). 01559_ WV>TZ